bitfinex/quotes_ETHUSD_20241223
["timestamp","ask_amount","ask_price","bid_price","bid_amount"]
[1734926122553,2.98479,3350.4,3349.4,3.91719339]
[1734926122756,0.7649,3350.7,3349.4,3.91719339]
[1734926122757,3.7494,3350.7,3349.4,3.91719339]
[1734926123055,4.12434,3350.7,3349.4,3.91719339]
[1734926123307,4.12434,3350.7,3349.4,4.50109267]
[1734926123608,4.12434,3350.7,3349.5,3.0]
[1734926123609,2.98463,3350.5,3349.5,3.0]
[1734926123751,2.98472,3350.4,3349.5,3.0]
[1734926124089,0.412456,3350.4,3349.5,3.0]
[1734926124273,0.7649,3350.7,3349.5,3.0]
[1734926124473,2.98477,3350.4,3349.5,3.0]
[1734926124969,2.98477,3350.4,3349.6,0.55]
[1734926126487,0.7649,3350.7,3349.6,3.53537]
[1734926126661,0.7649,3350.7,3349.6,0.55]
[1734926126865,3.74936,3350.7,3349.6,0.55]
[1734926127067,0.374936,3350.6,3349.6,0.55]
[1734926127378,0.374936,3350.6,3349.6,3.53541]
[1734926127588,0.374936,3350.6,3349.6,0.55]
[1734926128392,3.73439,3351.1,3350.0,0.55]
[1734926128572,2.98419,3351.0,3350.0,0.55]
[1734926128770,0.7503,3351.1,3350.0,0.55]
[1734926128973,2.98427,3350.9,3349.8,3.55]
[1734926129457,2.98446,3350.7,3349.8,0.55]
[1734926129659,2.9848,3350.4,3349.6,3.0]
[1734926130187,2.9848,3350.3,3349.6,3.0]
[1734926130563,2.9848,3350.3,3349.5,8.98]
[1734926130773,2.98489,3350.2,3349.5,8.98]
[1734926131072,3.75591,3350.5,3349.5,8.98]
[1734926131273,0.4054096,3350.4,3349.5,8.98]
[1734926131586,2.98492,3350.2,3349.5,8.98]
[1734926131786,2.98492,3350.2,3349.3,3.59399845]
[1734926131998,2.98492,3350.2,3349.4,0.55]
[1734926132200,0.33903296,3350.1,3349.4,0.55]
[1734926132517,0.04297648,3350.1,3349.4,0.55]
[1734926132862,2.98482,3350.3,3349.4,0.55]
[1734926133385,0.04297648,3350.2,3349.4,0.55]
[1734926134002,2.98501,3350.1,3349.4,0.55]
[1734926134388,0.4054096,3350.4,3349.4,0.55]
[1734926134389,0.04297648,3350.0,3349.4,0.55]
[1734926134597,3.43077056,3350.3,3349.4,0.55]
[1734926134795,2.98529,3349.8,3349.3,0.59399845]
[1734926134997,2.98537,3349.7,3348.8,2.71331223]
[1734926135205,3.02824275,3349.7,3348.8,2.71331223]
[1734926135374,3.02824275,3349.7,3348.7,0.59316865]
[1734926135702,3.28819427,3349.7,3348.7,0.59316865]
[1734926136207,0.30282427,3349.7,3348.8,0.55]
[1734926136369,0.04287275,3349.6,3348.8,0.55]
[1734926137209,2.98533,3349.8,3348.8,0.55]
[1734926137413,0.04287275,3349.7,3348.8,3.26331223]
[1734926137576,2.98481,3350.3,3349.3,0.55]
[1734926137779,0.45913478,3350.2,3349.3,0.55]
[1734926137976,0.04263282,3350.2,3349.3,0.55]
[1734926138225,0.7748,3350.4,3349.3,0.55]
[1734926138412,5.45384704,3351.1,3349.7,0.55]
[1734926138413,3.75919,3350.8,3349.7,0.55]
[1734926138715,0.04263282,3350.7,3349.7,3.53532]
[1734926139079,3.75919,3350.8,3349.7,3.53532]
[1734926139399,0.375919,3350.7,3349.7,3.53532]
[1734926139910,0.04282735,3350.6,3349.9,2.98513]
[1734926140085,0.04282735,3350.6,3349.9,0.55]
[1734926140297,0.7809,3351.2,3349.9,0.55]
[1734926140500,0.7809,3351.2,3349.7,3.0]
[1734926140501,2.98441,3350.8,3349.8,0.55]
[1734926140810,0.298441,3350.7,3349.8,0.55]
[1734926141119,0.04306078,3350.6,3349.8,0.55]
[1734926142334,0.04306078,3350.6,3349.8,3.55]
[1734926142638,0.7809,3351.2,3350.2,0.55]
[1734926142931,0.04315802,3351.1,3350.2,0.55]
[1734926143294,0.42396382,3351.1,3350.2,0.55]
[1734926143486,0.04315802,3351.1,3350.1,3.55]
[1734926143688,3.7649,3351.2,3350.1,0.55]
[1734926143887,0.04315802,3351.0,3350.2,0.55]
[1734926144083,0.04315802,3351.0,3350.0,2.98507]
[1734926144334,0.7809,3351.2,3350.3,0.55]
[1734926144499,0.376482,3351.1,3350.3,0.55]
[1734926144703,0.04315802,3351.1,3350.3,0.55]
[1734926145291,0.04315802,3351.1,3350.6,2.98453]
[1734926145493,0.04315802,3351.1,3350.7,0.55]
[1734926145691,3.78988,3351.8,3350.7,0.55]
[1734926145997,0.42325954,3351.7,3350.8,0.55]
[1734926146197,0.04427154,3351.7,3350.8,0.55]
[1734926147507,0.04427154,3351.7,3351.0,2.98417]
[1734926147702,0.8066,3352.0,3351.1,0.55]
[1734926148109,0.04427154,3351.9,3351.1,0.55]
[1734926148303,0.04427154,3351.9,3350.8,6.53428]
[1734926149202,3.02765154,3351.9,3350.8,3.55]
[1734926149403,0.38342515,3351.8,3350.4,3.0]
[1734926149928,0.04427154,3351.7,3350.4,3.0]
[1734926150115,3.02791154,3351.7,3350.4,3.0]
[1734926150293,3.02791154,3351.7,3350.6,0.5980378]
[1734926150489,0.34113367,3351.6,3350.6,3.5980378]
[1734926150715,0.34113367,3351.6,3350.7,0.55]
[1734926150914,3.73504,3351.5,3350.5,0.55]
[1734926151300,3.73504,3351.5,3350.3,11.96479]
[1734926151301,0.04427154,3351.4,3350.3,1.15777705]
[1734926151526,2.98398,3351.3,3350.3,1.15777705]
[1734926152130,0.04427154,3351.2,3350.3,1.15777705]
[1734926152529,0.04427154,3351.2,3350.5,5.69791223]
[1734926152833,0.7513,3351.5,3350.5,5.69791223]
[1734926153031,0.7513,3351.5,3350.5,2.71331223]
[1734926153245,0.7513,3351.5,3350.6,2.98452]
[1734926153596,0.7513,3351.5,3350.5,3.0]
[1734926153597,3.73506,3351.5,3350.5,3.0]
[1734926153803,3.02834132,3351.4,3350.4,0.55]
[1734926154135,2.98392,3351.3,3350.3,3.60777705]
[1734926154436,3.36189313,3351.3,3350.3,0.60777705]
[1734926154728,0.04456965,3351.2,3350.3,0.60777705]
[1734926155524,0.04456965,3351.2,3350.7,2.71331223]
[1734926155923,0.7513,3351.5,3350.5,6.53461]
[1734926156123,3.73508,3351.5,3350.5,3.55]
[1734926156300,0.04437524,3351.4,3350.5,3.55]
[1734926156501,0.04437524,3351.4,3350.5,0.55]
[1734926156738,0.04437524,3351.4,3350.4,0.55]
[1734926156925,0.04437524,3351.4,3350.4,3.55]
[1734926157436,0.04437524,3351.4,3350.5,3.0]
[1734926157734,0.7513,3351.5,3350.5,3.0]
[1734926157951,0.7981,3352.1,3351.0,2.98418]
[1734926158100,0.7981,3352.1,3350.7,2.71331223]
[1734926158101,1.776215,3352.1,3351.1,2.98401]
[1734926158301,0.04304408,3352.0,3351.1,2.98401]
[1734926159552,0.04304408,3352.0,3350.9,2.98426]
[1734926159759,0.7981,3352.1,3351.0,3.55]
[1734926159953,0.04304408,3351.9,3351.0,3.53417]
[1734926160157,0.7981,3352.1,3351.0,3.53417]
[1734926160359,0.04304408,3351.8,3351.1,3.59144328]
[1734926160561,0.7981,3352.1,3351.1,3.59144328]
[1734926161325,0.7981,3352.1,3351.1,0.60739328]
[1734926161879,0.04304408,3352.0,3351.1,0.60739328]
[1734926162057,3.81321,3351.8,3350.7,11.98]
[1734926162221,2.98357,3351.7,3350.7,12.57753396]
[1734926162421,2.9838,3351.5,3350.7,9.57753396]
[1734926162646,0.87274408,3351.4,3350.7,9.57753396]
[1734926163159,0.87274408,3351.4,3350.7,12.56197396]
[1734926163322,0.87274408,3351.4,3350.7,9.57753396]
[1734926163526,3.80735,3352.4,3351.3,2.98389]
[1734926163829,0.04185678,3352.3,3351.4,6.26331223]
[1734926164044,0.7894,3352.8,3352.0,2.98325]
[1734926164249,0.04185678,3352.7,3352.2,3.0]
[1734926164434,1.86474229,3352.9,3352.7,6.53267]
[1734926164642,0.49218132,3352.9,3352.8,7.327819]
[1734926164821,2.48632305,3353.1,3353.0,3.55]
[1734926165022,2.48632305,3353.1,3353.0,6.26331223]
[1734926165222,3.05e-06,3353.1,3353.0,33.50113223]
[1734926165457,2.49296659,3354.5,3353.3,2.98208]
[1734926165660,2.49296659,3354.5,3354.0,2.71331223]
[1734926165839,0.03524134,3354.4,3354.0,2.71331223]
[1734926166162,0.03524134,3354.4,3353.7,6.46614991]
[1734926166380,0.03524134,3354.4,3353.8,0.55]
[1734926166541,3.90150381,3354.6,3353.8,0.55]
[1734926166745,3.90150381,3354.6,3353.7,3.48444991]
[1734926166940,3.7746,3354.6,3353.7,3.48444991]
[1734926167281,0.03645907,3354.5,3353.7,3.48444991]
[1734926167475,2.98121,3354.4,3353.4,3.0]
[1734926167764,0.03645907,3354.5,3353.3,3.48444991]
[1734926167949,2.98107,3354.5,3353.3,3.48444991]
[1734926168273,0.03645907,3354.4,3353.5,0.58949253]
[1734926168757,3.7746,3354.6,3353.5,0.58949253]
[1734926168960,0.03645907,3354.3,3353.5,0.58949253]
[1734926169166,3.7746,3354.6,3353.5,0.58949253]
[1734926169351,0.03645907,3354.2,3353.5,0.58949253]
[1734926169550,2.98108,3354.5,3353.5,0.58949253]
[1734926169849,0.03846104,3354.4,3353.5,0.58949253]
[1734926170049,3.01962104,3354.4,3353.5,0.58949253]
[1734926170366,2.96057063,3354.4,3353.5,0.58949253]
[1734926170535,0.037179,3354.3,3353.5,0.58949253]
[1734926171729,2.98146,3354.1,3353.5,0.58949253]
[1734926171928,0.7697,3354.0,3353.5,0.58949253]
[1734926172146,0.80685311,3354.0,3353.5,0.58949253]
[1734926173277,0.7697,3355.1,3353.5,3.58949253]
[1734926173482,2.98069,3355.0,3353.7,3.0]
[1734926173689,3.01777838,3355.0,3353.7,3.0]
[1734926173845,2.98081,3354.8,3353.7,3.0]
[1734926174190,0.03708838,3354.7,3353.8,0.55]
[1734926175697,0.37874784,3355.0,3353.8,0.55]
[1734926175867,0.03708838,3354.6,3353.8,0.55]
[1734926176070,0.37874784,3355.0,3353.8,0.55]
[1734926176382,0.03708838,3354.9,3353.8,0.55]
[1734926176695,3.01785838,3354.9,3353.8,0.55]
[1734926177197,2.98108,3354.5,3353.5,3.58949253]
[1734926177394,0.8109,3354.4,3353.6,0.55]
[1734926177717,0.03708838,3354.3,3353.6,3.55]
[1734926178012,0.8109,3354.4,3353.6,3.55]
[1734926178316,0.7674,3355.0,3353.8,0.55]
[1734926178604,3.74806,3355.0,3353.8,0.55]
[1734926178763,0.03739904,3354.9,3353.8,3.53167]
[1734926178957,0.7674,3355.0,3353.9,3.0]
[1734926179271,0.7674,3355.4,3354.2,0.55]
[1734926179473,0.03739904,3355.3,3354.4,2.98115]
[1734926179658,0.7674,3355.4,3354.4,2.98115]
[1734926179856,0.03790385,3355.3,3354.7,2.98086]
[1734926180061,1.14199301,3355.8,3354.8,6.46524991]
[1734926180256,0.03790385,3355.7,3354.9,0.55]
[1734926180462,1.14199301,3355.8,3354.9,0.55]
[1734926180695,0.03824035,3355.7,3355.1,2.98048]
[1734926181118,0.37459301,3355.8,3355.1,2.98048]
[1734926181119,0.37459301,3355.8,3355.1,0.58214924]
[1734926181797,0.37459301,3355.8,3355.1,3.56266924]
[1734926181996,0.37459301,3355.8,3355.2,3.0]
[1734926183177,0.37459301,3355.8,3355.2,2.98044]
[1734926183467,0.37459301,3355.8,3355.3,3.0]
[1734926183669,0.37459301,3355.8,3355.4,3.53023]
[1734926183912,0.37459301,3355.8,3355.4,0.55]
[1734926184061,3.75328,3356.6,3355.4,0.55]
[1734926184398,0.4142475,3356.5,3355.4,0.55]
[1734926184610,0.0389195,3356.5,3355.4,0.55]
[1734926184911,0.0389195,3356.5,3355.4,3.53025]
[1734926185573,0.0389195,3356.5,3355.6,3.0]
[1734926185776,0.774,3356.6,3355.7,3.0]
[1734926185975,0.7652,3356.9,3355.7,3.0]
[1734926186175,0.7652,3356.9,3355.9,2.70292204]
[1734926186394,0.7652,3356.9,3356.1,0.6033963]
[1734926186590,0.7652,3356.9,3355.7,3.55]
[1734926186591,2.97922,3356.6,3355.7,3.55]
[1734926186904,2.97951,3356.3,3355.5,8.98]
[1734926187206,3.79587159,3356.5,3355.5,8.98]
[1734926187405,0.0390263,3356.2,3355.4,0.55]
[1734926187703,0.0390263,3356.1,3355.4,1.15530635]
[1734926188096,0.7763,3356.5,3355.4,1.15530635]
[1734926188296,0.03911685,3356.0,3355.6,5.68298204]
[1734926188494,0.7763,3356.5,3355.7,3.0]
[1734926189009,0.03920741,3356.4,3355.7,3.0]
[1734926189370,0.03915568,3356.3,3355.6,5.68298204]
[1734926189605,0.7763,3356.5,3355.6,2.70292204]
[1734926189799,2.97938,3356.4,3355.6,2.70292204]
[1734926189985,3.76718,3356.1,3355.4,0.60530635]
[1734926190191,0.7875,3356.1,3355.4,0.60530635]
[1734926190412,0.7875,3356.1,3355.6,2.70292204]
[1734926190598,0.03785049,3356.0,3355.6,2.70292204]
[1734926192635,0.7875,3356.1,3355.6,2.70292204]
[1734926193229,2.98,3355.7,3355.3,0.58474682]
[1734926193430,3.76761,3355.6,3354.8,2.70292204]
[1734926193630,3.80542168,3355.6,3354.8,2.70292204]
[1734926194006,0.82531168,3355.6,3355.1,2.70292204]
[1734926194413,0.7875,3355.6,3355.1,2.70292204]
[1734926194824,0.03759177,3355.5,3355.1,2.70292204]
[1734926195091,0.03759177,3355.5,3354.7,0.59196591]
[1734926195295,3.76767,3355.6,3354.7,0.59196591]
[1734926195516,0.376767,3355.5,3354.7,0.59196591]
[1734926195721,0.03736537,3355.5,3354.7,0.59196591]
[1734926195938,0.7875,3355.6,3354.7,0.59196591]
[1734926196137,0.03711307,3355.4,3354.7,0.59196591]
[1734926196343,3.76759,3355.6,3354.7,0.59196591]
[1734926196651,0.03711307,3355.5,3354.7,0.59196591]
[1734926197243,0.03711307,3355.5,3354.9,2.70292204]
[1734926197416,0.7602,3356.0,3355.2,2.70292204]
[1734926197606,0.7602,3356.0,3355.3,2.98033]
[1734926197810,0.03696427,3355.9,3355.3,2.98033]
[1734926198343,0.7602,3356.0,3355.2,2.70292204]
[1734926199246,3.0,3356.5,3355.3,2.98034]
[1734926199420,0.03713247,3356.4,3355.3,2.98034]
[1734926199611,0.03713247,3356.4,3355.4,0.5941551]
[1734926200250,1.0,3355.6,3355.4,0.5941551]
[1734926201232,1.0,3355.6,3355.5,0.55]
[1734926201440,1.0,3355.6,3355.4,0.5941551]
[1734926201640,1.0,3355.6,3355.5,0.55]
[1734926201840,1.0,3355.6,3355.5,3.53018]
[1734926202047,3.0,3357.0,3355.8,2.97988]
[1734926202214,1.46462455,3356.9,3356.0,2.97971]
[1734926202420,0.8304,3356.9,3355.9,0.7605]
[1734926202621,0.03638636,3356.8,3355.9,0.7605]
[1734926202815,0.8304,3356.9,3355.9,0.7605]
[1734926203027,0.03638636,3356.8,3356.0,0.59525442]
[1734926203330,2.9786,3357.3,3356.2,0.7605]
[1734926203530,3.35958,3357.2,3356.2,0.7605]
[1734926203725,2.97887,3357.0,3356.0,0.59173433]
[1734926203940,0.8304,3357.1,3356.0,0.59173433]
[1734926204453,0.8304,3357.1,3356.1,2.97963]
[1734926204761,0.8304,3357.1,3356.3,2.97943]
[1734926205054,0.03555213,3357.0,3356.3,2.97943]
[1734926205554,0.03555213,3357.0,3356.0,0.59173433]
[1734926205931,0.38447221,3357.0,3356.0,0.59173433]
[1734926206128,3.01456977,3356.9,3356.0,0.59173433]
[1734926206552,0.03562977,3356.9,3356.0,0.59173433]
[1734926206852,0.8304,3357.1,3356.0,0.59173433]
[1734926207059,0.03562977,3357.0,3356.0,0.59173433]
[1734926207818,2.97896,3356.9,3356.0,0.59173433]
[1734926208164,0.38449898,3356.8,3356.0,0.59173433]
[1734926208348,0.42012875,3356.8,3356.0,0.59173433]
[1734926208948,0.38449898,3356.8,3356.0,0.59173433]
[1734926210261,0.03437741,3356.7,3356.0,0.59173433]
[1734926210836,0.03322503,3356.6,3356.0,0.59173433]
[1734926211040,2.97904,3356.8,3356.0,0.59173433]
[1734926211233,1.0,3357.0,3356.0,0.59173433]
[1734926211433,1.0,3357.0,3356.0,3.57145433]
[1734926211634,0.03322503,3356.9,3356.3,2.97943]
[1734926211956,0.03322503,3356.9,3356.4,1.3105]
[1734926212155,0.03322503,3356.9,3356.6,2.70292204]
[1734926214126,1.0,3357.0,3356.6,2.70292204]
[1734926214856,0.03388486,3356.9,3356.6,2.70292204]
[1734926215241,1.0,3357.0,3356.6,2.70292204]
[1734926216052,1.0,3357.0,3356.4,1.3105]
[1734926216053,1.0,3357.0,3356.4,5.51438116]
[1734926216264,1.0,3357.0,3356.6,2.70292204]
[1734926216470,1.0,3357.0,3356.4,1.96438116]
[1734926216804,0.03390426,3356.9,3356.4,1.96438116]
[1734926217000,0.03390426,3356.9,3356.4,1.20388116]
[1734926217481,0.03390426,3356.8,3356.3,3.30253131]
[1734926217645,1.0,3357.0,3356.3,3.30253131]
[1734926217847,0.03390426,3356.9,3356.1,1.20388116]
[1734926218046,0.758,3356.6,3356.1,1.20388116]
[1734926218252,0.03427945,3356.5,3356.1,1.20388116]
[1734926218700,2.97949,3356.3,3356.0,1.20388116]
[1734926218984,0.03424711,3356.2,3356.0,1.20388116]
[1734926219147,2.97964,3356.1,3356.0,1.20388116]
[1734926219485,3.01376422,3356.1,3356.0,1.20388116]
[1734926219797,3.73775,3356.0,3355.4,1.20388116]
[1734926220084,2.97983,3355.9,3355.4,1.20388116]
[1734926220246,0.03363262,3355.8,3355.4,1.20388116]
[1734926220781,0.03363262,3355.8,3355.2,0.59143712]
[1734926221196,0.758,3356.0,3355.2,0.59143712]
[1734926221564,0.758,3356.0,3355.3,1.00140776]
[1734926222067,0.03363262,3355.9,3355.3,1.00140776]
[1734926222567,2.98002,3355.7,3355.3,1.00140776]
[1734926222785,2.98027,3355.5,3355.3,1.00140776]
[1734926222988,3.73827,3355.4,3355.3,1.00140776]
[1734926223156,0.79163262,3355.4,3355.3,1.00140776]
[1734926223679,0.03363262,3355.4,3355.3,1.00140776]
[1734926223880,0.758,3356.3,3355.3,6.899747]
[1734926224080,0.758,3356.9,3355.8,2.97991]
[1734926224291,0.03339965,3356.8,3355.7,0.7605]
[1734926224497,0.03339965,3356.8,3355.8,0.55]
[1734926225092,0.03339965,3356.8,3355.8,3.52991]
[1734926225398,0.758,3356.9,3355.9,1.00140776]
[1734926225694,0.03307619,3356.8,3355.9,1.00140776]
[1734926226687,0.03307619,3356.8,3355.9,2.50496961]
[1734926226891,0.03307619,3356.8,3356.0,3.0]
[1734926227118,0.758,3356.9,3356.1,2.97963]
[1734926227270,1.0,3357.0,3356.3,2.97945]
[1734926227899,1.0,3357.0,3356.4,3.52936]
[1734926228105,0.92105525,3357.0,3356.5,2.97927]
[1734926228529,0.92105525,3357.0,3356.3,0.55]
[1734926228882,0.92105525,3357.0,3356.4,3.5821053]
[1734926229282,0.92105525,3357.0,3356.5,2.97928]
[1734926229594,0.92105525,3357.0,3356.6,2.50496961]
[1734926230785,0.92105525,3357.0,3356.6,1.00140776]
[1734926233106,0.92105525,3357.0,3356.5,1.00140776]
[1734926233418,0.8031,3356.9,3356.5,1.00140776]
[1734926233585,0.92105525,3357.0,3356.5,1.00140776]
[1734926233586,3.7823,3356.6,3356.5,1.00140776]
[1734926233788,4.16053,3356.6,3356.5,1.00140776]
[1734926234020,4.19333003,3356.6,3356.5,1.00140776]
[1734926234399,7.19333003,3356.6,3356.5,1.00140776]
[1734926235021,2.97937,3356.5,3355.1,14.46299741]
[1734926235185,1.21413003,3356.6,3355.3,0.55]
[1734926235387,0.03281297,3356.4,3355.1,11.48249741]
[1734926235586,0.8031,3356.1,3355.1,11.48249741]
[1734926235826,0.8031,3355.6,3355.1,2.50249741]
[1734926236323,0.8031,3355.6,3355.4,2.50249741]
[1734926236488,3.01218254,3355.5,3355.4,2.50249741]
[1734926237109,3.39371079,3355.5,3355.4,2.50249741]
[1734926237601,0.8079,3355.3,3354.4,1.20388116]
[1734926237797,0.8079,3355.1,3354.4,1.20388116]
[1734926238097,2.98098,3354.6,3354.4,1.20388116]
[1734926238291,0.03102698,3354.5,3354.4,1.20388116]
[1734926238724,2.9808,3354.8,3354.4,1.20388116]
[1734926238914,3.65967,3354.8,3353.7,1.20388116]
[1734926239101,0.03102698,3354.7,3353.7,1.20388116]
[1734926239617,3.03102698,3354.7,3353.7,1.20388116]
[1734926239798,3.03102698,3354.7,3353.6,3.57205894]
[1734926240202,0.03102698,3354.7,3353.7,0.55]
[1734926240401,0.03102698,3354.7,3354.2,2.98132]
[1734926240721,2.98027,3355.4,3354.0,8.98]
[1734926241048,2.9811,3354.5,3353.7,1.20388116]
[1734926241459,0.7642,3354.6,3353.7,1.20388116]
[1734926241741,0.0302047,3354.4,3353.7,1.20388116]
[1734926241936,3.74521,3354.6,3353.6,0.59019894]
[1734926242146,0.0302047,3354.3,3353.6,0.59019894]
[1734926242327,0.7642,3354.6,3353.6,0.59019894]
[1734926242645,0.0302047,3354.5,3353.6,0.59019894]
[1734926243135,0.0302047,3354.5,3353.8,0.7605]
[1734926243506,3.77171,3354.9,3353.8,0.7605]
[1734926243744,0.02988735,3354.8,3353.8,0.7605]
[1734926243951,0.02988735,3354.8,3353.6,0.59019894]
[1734926244166,2.98112,3354.5,3353.6,0.59019894]
[1734926244461,3.28222074,3354.5,3353.6,0.59019894]
[1734926244735,0.02993268,3354.4,3353.6,0.59019894]
[1734926244953,3.01110268,3354.4,3353.6,0.59019894]
[1734926245164,2.98135,3354.2,3353.6,0.59019894]
[1734926245341,0.8229,3354.1,3353.6,0.59019894]
[1734926245511,0.85281324,3354.1,3353.6,0.59019894]
[1734926245706,2.9818,3353.7,3353.0,1.20388116]
[1734926245958,3.01175733,3353.6,3353.0,1.20388116]
[1734926246165,0.8229,3353.5,3353.0,1.20388116]
[1734926246472,0.02988733,3353.6,3353.1,0.7605]
[1734926246759,0.8229,3354.3,3353.1,0.7605]
[1734926246911,2.98137,3354.2,3353.2,0.61137143]
[1734926247111,0.02842015,3354.1,3353.2,0.61137143]
[1734926247564,0.02842015,3354.1,3353.3,2.98211]
[1734926247707,0.02842015,3354.1,3353.4,3.532]
[1734926247908,3.8312,3354.6,3353.4,3.532]
[1734926248109,3.00928975,3354.5,3353.2,0.61137143]
[1734926248854,2.98118,3354.4,3353.2,0.61137143]
[1734926249181,0.8312,3354.6,3353.2,0.61137143]
[1734926249329,0.02819975,3354.3,3353.2,3.59357143]
[1734926249960,0.02819975,3354.3,3353.2,0.61137143]
[1734926250625,0.8312,3354.6,3353.2,3.59359143]
[1734926250826,2.98119,3354.4,3353.2,3.59359143]
[1734926251199,2.98119,3354.4,3353.2,0.61137143]
[1734926251471,0.02837478,3354.3,3353.2,3.59359143]
[1734926251833,0.02837478,3354.3,3353.4,2.98203]
[1734926252033,0.8312,3354.6,3353.5,2.98195]
[1734926252262,0.8312,3354.6,3353.6,0.7605]
[1734926252485,0.02837478,3354.5,3353.6,0.7605]
[1734926252698,0.02837478,3354.5,3353.3,0.7605]
[1734926252872,0.7746,3354.4,3353.0,3.7605]
[1734926253031,0.02836829,3354.3,3353.0,3.7605]
[1734926253329,3.00962829,3354.3,3353.0,3.7605]
[1734926253531,3.73612001,3354.3,3353.0,7.32791143]
[1734926253734,2.98134,3354.2,3353.0,7.32791143]
[1734926254162,0.02836181,3354.1,3353.0,7.32791143]
[1734926254527,0.02836181,3354.1,3353.0,4.34554143]
[1734926254728,3.00981181,3354.1,3353.0,4.34554143]
[1734926254957,3.46090216,3354.1,3353.0,1.34554143]
[1734926255164,3.46090216,3354.1,3353.0,4.34554143]
[1734926256541,3.46090216,3354.1,3353.0,1.34554143]
[1734926257673,0.8319,3354.0,3353.0,1.34554143]
[1734926257872,0.02804419,3353.9,3352.7,0.7605]
[1734926258076,0.8319,3353.8,3352.4,0.7605]
[1734926258277,0.8319,3353.3,3352.1,1.96438116]
[1734926258454,0.65397944,3353.7,3352.1,1.96438116]
[1734926258455,0.8319,3353.0,3352.1,1.20388116]
[1734926258651,2.98286,3352.5,3352.1,1.20388116]
[1734926258836,2.98259,3352.8,3352.1,1.20388116]
[1734926259347,0.02790156,3352.7,3352.1,1.20388116]
[1734926259580,0.02790156,3352.7,3351.7,0.7605]
[1734926259988,0.8319,3352.6,3351.6,0.60355661]
[1734926260299,0.02746708,3352.5,3351.6,0.60355661]
[1734926260463,0.02746708,3352.5,3351.7,0.55]
[1734926260788,0.7544,3353.1,3351.9,0.55]
[1734926260949,0.7544,3353.1,3351.8,0.7605]
[1734926261146,0.7544,3352.6,3351.6,0.60355661]
[1734926261561,0.026118,3352.5,3351.6,0.60355661]
[1734926261861,2.98308,3352.3,3351.1,3.74451]
[1734926262379,0.02610502,3352.2,3351.1,3.74451]
[1734926262680,2.98287,3352.5,3351.1,0.7605]
[1734926262981,0.02610502,3352.4,3351.2,0.55]
[1734926263151,0.77035487,3352.3,3351.2,0.55]
[1734926263346,2.98295,3352.4,3351.2,0.55]
[1734926263678,0.7781,3352.2,3351.2,0.60140723]
[1734926263880,0.02610502,3352.1,3351.3,2.9839]
[1734926264116,0.02610502,3352.1,3351.4,0.55]
[1734926264304,0.02610502,3352.1,3351.2,0.60140723]
[1734926264305,0.7781,3352.5,3351.3,0.55]
[1734926264470,0.7781,3352.5,3351.4,2.98377]
[1734926264812,2.98303,3352.3,3351.3,0.55]
[1734926265018,0.7851,3352.2,3351.2,0.60140723]
[1734926265200,3.76824,3352.2,3351.2,0.60140723]
[1734926265522,0.02610502,3352.1,3351.1,0.7605]
[1734926266127,0.02610502,3352.1,3351.1,4.33833121]
[1734926266719,0.02610502,3352.1,3351.2,2.984]
[1734926267026,0.7851,3352.2,3351.2,2.984]
[1734926267365,0.02610502,3352.1,3351.1,1.35424121]
[1734926267783,0.7851,3352.2,3351.1,1.35424121]
[1734926268897,0.7851,3352.2,3350.8,0.7605]
[1734926269113,0.7601,3351.8,3350.6,0.55]
[1734926269330,0.7601,3351.8,3350.3,8.98]
[1734926269503,2.98375,3351.5,3350.6,0.58973225]
[1734926269816,0.7601,3351.4,3350.6,0.58973225]
[1734926270022,2.98402,3351.2,3350.6,0.58973225]
[1734926270319,3.74429,3351.0,3349.8,1.20388116]
[1734926270518,2.98436,3350.8,3349.8,1.20388116]
[1734926270817,0.7739,3350.7,3349.9,3.57355801]
[1734926271193,0.7739,3350.7,3349.9,0.58841801]
[1734926272099,3.0,3350.7,3349.0,1.194361]
[1734926272301,0.8101,3350.6,3348.9,0.7605]
[1734926272527,0.7866,3350.2,3348.9,0.7605]
[1734926272828,2.98498,3350.1,3348.9,0.7605]
[1734926273020,2.98532,3349.8,3348.5,0.7605]
[1734926273193,0.7519,3349.7,3348.5,0.7605]
[1734926273596,0.7519,3349.7,3348.5,2.9864]
[1734926273830,0.7519,3349.7,3348.4,1.20388116]
[1734926274428,0.7519,3349.7,3348.7,0.59379442]
[1734926274736,3.48982475,3350.4,3348.7,0.59379442]
[1734926274737,0.7519,3350.4,3349.2,2.98574]
[1734926274908,0.673651,3350.3,3349.3,2.98568]
[1734926275710,0.673651,3350.3,3349.3,3.56913977]
[1734926276923,0.7519,3350.4,3349.3,3.56913977]
[1734926277717,0.7519,3350.4,3349.5,2.98549]
[1734926279240,0.7519,3350.4,3349.7,2.9853]
[1734926280450,0.7519,3350.4,3349.7,2.98533]
[1734926281441,0.7519,3350.4,3349.5,2.98552]
[1734926281612,0.7519,3350.4,3349.8,2.98518]
[1734926282939,0.7519,3350.4,3349.4,0.55]
[1734926283139,0.7519,3350.4,3350.1,2.98494]
[1734926283341,0.7519,3350.4,3349.9,2.98516]
[1734926284004,2.9841,3351.1,3349.9,2.98516]
[1734926284628,0.64731147,3351.9,3350.0,2.98507]
[1734926284940,0.64731147,3351.9,3349.8,3.48982475]
[1734926284941,3.48982475,3352.5,3350.5,2.98462]
[1734926285141,2.98303,3352.3,3350.9,0.8107]
[1734926285355,2.98283,3352.6,3350.9,0.8107]
[1734926285649,2.98268,3352.7,3351.0,2.98418]
[1734926285849,3.63001048,3352.6,3351.0,2.98418]
[1734926286053,0.64725048,3352.6,3351.1,3.48982475]
[1734926286349,2.98255,3352.9,3351.1,3.48982475]
[1734926286556,2.98255,3352.9,3351.6,2.98364]
[1734926286868,0.323223,3353.0,3351.1,3.48982475]
[1734926287016,0.8184,3352.9,3351.8,2.98346]
[1734926287630,0.8184,3352.9,3352.1,2.98314]
[1734926288214,0.8184,3352.9,3351.9,3.48982475]